[Event "VI Sunway Sitges Open 2019"]
[Site "Sitges"]
[Date "2019.12.18"]
[Round "6.34"]
[White "Bryakin, Mikhail"]
[Black "Garriga Cazorla, Pere"]
[Result "0-1"]
[ECO "E04"]
[WhiteElo "2428"]
[BlackElo "2484"]
[Annotator "ChessBase"]
[PlyCount "92"]
[EventDate "2019.12.13"]
[EventType "swiss"]
[EventCountry "ESP"]
[SourceTitle "playchess.com"]
[Source "ChessBase"]
[SourceQuality "1"]
[TimeControl "40/5400+30:1800+30"]

1. d4 {[%emt 0:00:00]} Nf6 {[%emt 0:01:10]} 2. c4 {[%emt 0:00:00]} e6 {[%emt 0:00:04]} 3. g3 {[%emt 0:00:00]} d5 {[%emt 0:00:05]} 4. Bg2 {[%emt 0:00:00]} dxc4 {[%emt 0:00:05]} 5. Nf3 {[%emt 0:00:05]} Nbd7 {[%emt 0:00:24]} 6. Nbd2 {[%emt 0:04:18]} b5 {[%emt 0:03:22]} 7. Ne5 {[%emt 0:05:49]} Nxe5 {[%emt 0:00:52]} 8. Bxa8 {[%emt 0:00:53]} Qxd4 {[%emt 0:00:42]} 9. Bg2 {[%emt 0:06:18]} Bc5 {[%emt 0:34:27]} 10. O-O {[%emt 0:00:31]} h5 {[%emt 0:00:07]} 11. Ne4 {[%emt 0:05:52]} Nxe4 {[%emt 0:03:24]} 12. Qxd4 {[%emt 0:00:17]} Bxd4 {[%emt 0:00:03]} 13. Bxe4 {[%emt 0:00:14]} Bd7 {[%emt 0:02:57]} 14. Rd1 {[%emt 0:03:58]} Bb6 {[%emt 0:07:06]} 15. Bd2 {[%emt 0:05:38]} a5 {[%emt 0:08:05]} 16. a3 {[%emt 0:08:20]} f6 {[%emt 0:02:53]} 17. Bc3 {[%emt 0:06:17]} Bc6 {[%emt 0:00:36]} 18. Bxc6+ {[%emt 0:05:59]} Nxc6 {[%emt 0:00:01]} 19. Rac1 {[%emt 0:02:55]} a4 {[%emt 0:02:44]} 20. Rd2 {[%emt 0:01:04]} Ke7 {[%emt 0:00:22]} 21. Rcd1 {[%emt 0:00:59]} Rd8 {[%emt 0:00:16]} 22. Bb4+ {[%emt 0:02:43]} Ke8 {[%emt 0:00:09]} 23. Rxd8+ {[%emt 0:00:44]} Nxd8 {[%emt 0:00:06]} 24. Bf8 {[%emt 0:02:09]} Kxf8 {[%emt 0:04:19]} 25. Rxd8+ {[%emt 0:00:05]} Ke7 {[%emt 0:00:04]} 26. Rb8 {[%emt 0:03:07]} Kd6 {[%emt 0:03:16]} 27. Kf1 {[%emt 0:00:30]} Kc6 {[%emt 0:03:12]} 28. e3 {[%emt 0:03:37]} Ba5 {[%emt 0:03:55]} 29. Ke2 {[%emt 0:01:13]} c3 {[%emt 0:00:25]} 30. Kd3 {[%emt 0:01:09]} cxb2 {[%emt 0:00:57]} 31. Kc2 {[%emt 0:00:03]} Bc3 {[%emt 0:00:35]} 32. Rh8 {[%emt 0:07:09]} f5 {[%emt 0:02:14]} 33. Rxh5 {[%emt 0:00:43]} b4 {[%emt 0:03:35]} 34. axb4 {[%emt 0:04:02]} a3 {[%emt 0:00:05]} 35. Kb1 {[%emt 0:00:04]} Kb5 {[%emt 0:01:18]} 36. Rh8 {[%emt 0:01:58]} Kxb4 {[%emt 0:02:37]} 37. Ka2 {[%emt 0:01:49]} Kc4 {[%emt 0:01:19]} 38. e4 {[%emt 0:09:12]} fxe4 {[%emt 0:01:26]} 39. h4 {[%emt 0:00:11]} c5 {[%emt 0:01:15]} 40. h5 {[%emt 0:00:00]} Kd3 {[%emt 0:00:00]} 41. Rb8 {[%emt 0:01:01]} Bb4 {[%emt 0:00:42]} 42. Kb1 {[%emt 0:00:30]} Kc3 {[%emt 0:00:10]} 43. Ra8 {[%emt 0:01:03]} Kb3 {[%emt 0:00:11]} 44. g4 {[%emt 0:00:52]} c4 {[%emt 0:00:06]} 45. g5 {[%emt 0:00:24]} c3 {[%emt 0:00:08]} 46. h6 {[%emt 0:00:10]} c2# {[%emt 0:00:05]} 0-1

[Event "VI Sunway Sitges Open 2019"]
[Site "Sitges"]
[Date "2019.12.18"]
[Round "6.35"]
[White "Alexiadis, Hristos"]
[Black "Erenberg, Ariel"]
[Result "1/2-1/2"]
[ECO "C47"]
[WhiteElo "2346"]
[BlackElo "2479"]
[Annotator "ChessBase"]
[PlyCount "50"]
[EventDate "2019.12.13"]
[EventType "swiss"]
[EventCountry "ESP"]
[SourceTitle "playchess.com"]
[Source "ChessBase"]
[SourceQuality "1"]
[TimeControl "40/5400+30:1800+30"]

1. e4 {[%emt 0:00:00]} e5 {[%emt 0:00:00]} 2. Nf3 {[%emt 0:00:09]} Nc6 {[%emt 0:00:00]} 3. Nc3 {[%emt 0:00:29]} Nf6 {[%emt 0:01:46]} 4. d4 {[%emt 0:00:10]} exd4 {[%emt 0:01:30]} 5. Nxd4 {[%emt 0:00:06]} Bb4 {[%emt 0:00:33]} 6. Nxc6 {[%emt 0:00:09]} bxc6 {[%emt 0:00:05]} 7. Bd3 {[%emt 0:00:05]} d5 {[%emt 0:00:08]} 8. exd5 {[%emt 0:00:05]} O-O {[%emt 0:00:22]} 9. O-O {[%emt 0:00:07]} cxd5 {[%emt 0:00:02]} 10. h3 {[%emt 0:00:19]} c6 {[%emt 0:02:59]} 11. Qf3 {[%emt 0:00:21]} Bd6 {[%emt 0:02:05]} 12. Bg5 {[%emt 0:01:22]} h6 {[%emt 0:00:42]} 13. Bxf6 {[%emt 0:02:20]} Qxf6 {[%emt 0:00:03]} 14. Qxf6 {[%emt 0:00:05]} gxf6 {[%emt 0:00:07]} 15. Ne2 {[%emt 0:00:09]} Rb8 {[%emt 0:03:35]} 16. b3 {[%emt 0:00:09]} c5 {[%emt 0:00:58]} 17. Rad1 {[%emt 0:06:25]} Be6 {[%emt 0:01:17]} 18. c3 {[%emt 0:00:15]} Rfd8 {[%emt 0:10:11]} 19. Bc2 {[%emt 0:03:27]} Kg7 {[%emt 0:07:02]} 20. f4 {[%emt 0:24:53]} f5 {[%emt 0:04:38]} 21. Ng3 {[%emt 0:18:31]} Kg6 {[%emt 0:00:19]} 22. Ne2 {[%emt 0:10:32]} Kf6 {[%emt 0:01:04]} 23. Ng3 {[%emt 0:00:07]} Kg6 {[%emt 0:00:39]} 24. Ne2 {[%emt 0:00:20]} Kf6 {[%emt 0:14:45]} 25. Ng3 {[%emt 0:00:09]} Kg6 {[%emt 0:00:41]} 1/2-1/2

[Event "VI Sunway Sitges Open 2019"]
[Site "Sitges"]
[Date "2019.12.18"]
[Round "6.37"]
[White "Adly, Ahmed"]
[Black "Sankalp Gupta"]
[Result "1-0"]
[ECO "D11"]
[WhiteElo "2607"]
[BlackElo "2365"]
[Annotator "ChessBase"]
[PlyCount "91"]
[EventDate "2019.12.13"]
[EventType "swiss"]
[EventCountry "ESP"]
[SourceTitle "playchess.com"]
[Source "ChessBase"]
[SourceQuality "1"]
[TimeControl "40/5400+30:1800+30"]

1. Nf3 {[%emt 0:05:07]} Nf6 {[%emt 0:02:23]} 2. d4 {[%emt 0:00:00]} d5 {[%emt 0:00:06]} 3. g3 {[%emt 0:00:00]} c6 {[%emt 0:00:13]} 4. Bg2 {[%emt 0:00:00]} h6 {[%emt 0:00:11]} 5. O-O {[%emt 0:00:00]} Bf5 {[%emt 0:00:02]} 6. c4 {[%emt 0:00:01]} e6 {[%emt 0:00:14]} 7. Nc3 {[%emt 0:00:41]} Be7 {[%emt 0:00:51]} 8. Qb3 {[%emt 0:00:10]} Qb6 {[%emt 0:00:26]} 9. c5 {[%emt 0:00:02]} Qa6 {[%emt 0:00:19]} 10. Re1 {[%emt 0:00:29]} b6 {[%emt 0:00:43]} 11. cxb6 {[%emt 0:00:41]} axb6 {[%emt 0:00:29]} 12. Ne5 {[%emt 0:00:05]} O-O {[%emt 0:01:56]} 13. e4 {[%emt 0:00:09]} dxe4 {[%emt 0:06:44]} 14. Nxe4 {[%emt 0:00:04]} Bxe4 {[%emt 0:03:47]} 15. Bxe4 {[%emt 0:00:38]} Qa5 {[%emt 0:00:14]} 16. Qe3 {[%emt 0:06:29]} Nxe4 {[%emt 0:01:18]} 17. Qxe4 {[%emt 0:00:02]} Qd5 {[%emt 0:00:57]} 18. Qxd5 {[%emt 0:00:03]} cxd5 {[%emt 0:01:06]} 19. Bf4 {[%emt 0:03:46]} Bd6 {[%emt 0:07:55]} 20. Rec1 {[%emt 0:13:20]} Ra4 {[%emt 0:02:18]} 21. Be3 {[%emt 0:00:13]} Rd8 {[%emt 0:03:05]} 22. b3 {[%emt 0:07:12]} Ra3 {[%emt 0:02:10]} 23. Nd3 {[%emt 0:00:29]} Kf8 {[%emt 0:01:55]} 24. Rc2 {[%emt 0:00:31]} Ke7 {[%emt 0:00:40]} 25. Bd2 {[%emt 0:01:56]} Rd7 {[%emt 0:14:15]} 26. Bb4 {[%emt 0:04:09]} Bxb4 {[%emt 0:07:35]} 27. Nxb4 {[%emt 0:00:02]} Na6 {[%emt 0:00:13]} 28. Nc6+ {[%emt 0:00:07]} Kd6 {[%emt 0:02:01]} 29. Rac1 {[%emt 0:00:05]} f6 {[%emt 0:03:15]} 30. f4 {[%emt 0:00:18]} g5 {[%emt 0:06:40]} 31. fxg5 {[%emt 0:00:07]} hxg5 {[%emt 0:00:06]} 32. h4 {[%emt 0:00:02]} gxh4 {[%emt 0:10:51]} 33. gxh4 {[%emt 0:00:02]} Nc5 {[%emt 0:02:56]} 34. Nb4 {[%emt 0:03:08]} Ne4 {[%emt 0:03:09]} 35. Rc6+ {[%emt 0:00:51]} Ke7 {[%emt 0:00:02]} 36. Rxb6 {[%emt 0:00:11]} Kf7 {[%emt 0:02:43]} 37. Rcc6 {[%emt 0:03:50]} Kg6 {[%emt 0:00:43]} 38. Rxe6 {[%emt 0:01:06]} Kf5 {[%emt 0:00:02]} 39. Rec6 {[%emt 0:05:56]} Rg7+ {[%emt 0:03:02]} 40. Kf1 {[%emt 0:00:00]} Ra8 {[%emt 0:00:00]} 41. Ke2 {[%emt 0:04:01]} Rg1 {[%emt 0:11:49]} 42. Rb5 {[%emt 0:02:06]} Rg2+ {[%emt 0:09:14]} 43. Kd3 {[%emt 0:01:25]} Nf2+ {[%emt 0:01:50]} 44. Kc2 {[%emt 0:00:10]} Ne4+ {[%emt 0:02:17]} 45. Kc1 {[%emt 0:01:22]} Rh8 {[%emt 0:00:52]} 46. Nxd5 {[%emt 0:00:32]} 1-0

[Event "VI Sunway Sitges Open 2019"]
[Site "Sitges"]
[Date "2019.12.18"]
[Round "6.38"]
[White "Krysa, Leandro"]
[Black "Sarkar, Justin"]
[Result "1-0"]
[ECO "A19"]
[WhiteElo "2527"]
[BlackElo "2360"]
[Annotator "ChessBase"]
[PlyCount "49"]
[EventDate "2019.12.13"]
[EventType "swiss"]
[EventCountry "ESP"]
[SourceTitle "playchess.com"]
[Source "ChessBase"]
[SourceQuality "1"]
[TimeControl "40/5400+30:1800+30"]

1. c4 {[%emt 0:00:00]} Nf6 {[%emt 0:08:17]} 2. Nc3 {[%emt 0:00:00]} e6 {[%emt 0:00:58]} 3. e4 {[%emt 0:00:20]} c5 {[%emt 0:01:21]} 4. e5 {[%emt 0:00:45]} Ng8 {[%emt 0:00:08]} 5. d4 {[%emt 0:00:41]} cxd4 {[%emt 0:05:20]} 6. Qxd4 {[%emt 0:00:14]} Nc6 {[%emt 0:00:08]} 7. Qe4 {[%emt 0:00:27]} d6 {[%emt 0:01:01]} 8. Nf3 {[%emt 0:00:52]} dxe5 {[%emt 0:01:51]} 9. Nxe5 {[%emt 0:00:20]} Bd7 {[%emt 0:02:26]} 10. Nxd7 {[%emt 0:10:21]} Qxd7 {[%emt 0:00:08]} 11. Bg5 {[%emt 0:02:10]} Bb4 {[%emt 0:01:12]} 12. Rd1 {[%emt 0:03:27]} Qc7 {[%emt 0:01:01]} 13. Bd3 {[%emt 0:11:38]} Bxc3+ {[%emt 0:01:05]} 14. bxc3 {[%emt 0:00:26]} Nf6 {[%emt 0:05:32]} 15. Qe3 {[%emt 0:04:55]} Ng4 {[%emt 0:23:52]} 16. Qg3 {[%emt 0:17:53]} Qe5+ {[%emt 0:08:56]} 17. Qxe5 {[%emt 0:00:11]} Ngxe5 {[%emt 0:00:10]} 18. Be2 {[%emt 0:00:20]} Na5 {[%emt 0:00:44]} 19. O-O {[%emt 0:04:04]} f6 {[%emt 0:02:02]} 20. Bc1 {[%emt 0:05:41]} Nexc4 {[%emt 0:01:16]} 21. Rd4 {[%emt 0:02:31]} Rc8 {[%emt 0:02:02]} 22. Bg4 {[%emt 0:03:32]} Ke7 {[%emt 0:13:38]} 23. Rfd1 {[%emt 0:11:07]} Rhe8 {[%emt 0:00:21]} 24. Rd7+ {[%emt 0:01:05]} Kf8 {[%emt 0:00:03]} 25. Bh5 {[%emt 0:00:21]} 1-0

[Event "VI Sunway Sitges Open 2019"]
[Site "Sitges"]
[Date "2019.12.18"]
[Round "6.39"]
[White "Esplugas Esteve, Vicenc"]
[Black "Sadhwani, Raunak"]
[Result "0-1"]
[ECO "E94"]
[WhiteElo "2366"]
[BlackElo "2507"]
[Annotator "ChessBase"]
[PlyCount "96"]
[EventDate "2019.12.13"]
[EventType "swiss"]
[EventCountry "ESP"]
[SourceTitle "playchess.com"]
[Source "ChessBase"]
[SourceQuality "1"]
[TimeControl "40/5400+30:1800+30"]

1. d4 {[%emt 0:00:00]} Nf6 {[%emt 0:00:08]} 2. c4 {[%emt 0:00:00]} g6 {[%emt 0:00:24]} 3. Nc3 {[%emt 0:00:00]} Bg7 {[%emt 0:00:04]} 4. e4 {[%emt 0:00:00]} d6 {[%emt 0:00:04]} 5. Nf3 {[%emt 0:00:00]} O-O {[%emt 0:00:05]} 6. Be2 {[%emt 0:00:00]} Qe8 {[%emt 0:00:04]} 7. O-O {[%emt 0:04:19]} e5 {[%emt 0:00:07]} 8. dxe5 {[%emt 0:09:15]} dxe5 {[%emt 0:00:04]} 9. b3 {[%emt 0:00:49]} Na6 {[%emt 0:00:05]} 10. Ba3 {[%emt 0:02:41]} c5 {[%emt 0:00:02]} 11. Ne1 {[%emt 0:09:02]} b6 {[%emt 0:00:50]} 12. Nd3 {[%emt 0:03:49]} Bb7 {[%emt 0:01:50]} 13. Bf3 {[%emt 0:01:12]} Rd8 {[%emt 0:04:03]} 14. Re1 {[%emt 0:09:06]} Qe7 {[%emt 0:24:42]} 15. Rc1 {[%emt 0:06:01]} Nc7 {[%emt 0:02:47]} 16. Bb2 {[%emt 0:05:37]} Ne6 {[%emt 0:07:25]} 17. Nd5 {[%emt 0:04:11]} Nxd5 {[%emt 0:00:07]} 18. exd5 {[%emt 0:01:43]} Nd4 {[%emt 0:00:06]} 19. Bxd4 {[%emt 0:04:43]} cxd4 {[%emt 0:00:02]} 20. Qd2 {[%emt 0:08:35]} Rfe8 {[%emt 0:01:59]} 21. Bd1 {[%emt 0:13:15]} e4 {[%emt 0:00:15]} 22. f3 {[%emt 0:03:19]} f5 {[%emt 0:04:12]} 23. fxe4 {[%emt 0:01:20]} fxe4 {[%emt 0:00:01]} 24. Bf3 {[%emt 0:00:19]} Qh4 {[%emt 0:00:43]} 25. g3 {[%emt 0:01:03]} Qh6 {[%emt 0:02:22]} 26. Qxh6 {[%emt 0:00:53]} Bxh6 {[%emt 0:00:01]} 27. Bxe4 {[%emt 0:00:52]} Bxc1 {[%emt 0:00:53]} 28. Nxc1 {[%emt 0:00:05]} Re7 {[%emt 0:00:12]} 29. Nd3 {[%emt 0:01:08]} Rde8 {[%emt 0:00:31]} 30. Nf2 {[%emt 0:00:24]} d3 {[%emt 0:01:47]} 31. Kg2 {[%emt 0:00:15]} d2 {[%emt 0:00:17]} 32. Rd1 {[%emt 0:00:03]} Rxe4 {[%emt 0:00:12]} 33. Nxe4 {[%emt 0:00:05]} Rxe4 {[%emt 0:00:05]} 34. Rxd2 {[%emt 0:00:04]} Bc8 {[%emt 0:00:20]} 35. Kf3 {[%emt 0:00:25]} Re5 {[%emt 0:00:12]} 36. Kf4 {[%emt 0:00:34]} Re1 {[%emt 0:01:04]} 37. b4 {[%emt 0:02:37]} Rc1 {[%emt 0:01:01]} 38. Rd4 {[%emt 0:00:52]} Kf7 {[%emt 0:00:33]} 39. Ke5 {[%emt 0:02:05]} Ke7 {[%emt 0:00:01]} 40. Rf4 {[%emt 0:00:00]} Rc2 {[%emt 0:00:00]} 41. a4 {[%emt 0:04:08]} Rxh2 {[%emt 0:05:18]} 42. c5 {[%emt 0:00:45]} Re2+ {[%emt 0:03:40]} 43. Kd4 {[%emt 0:00:11]} Bd7 {[%emt 0:09:09]} 44. a5 {[%emt 0:04:05]} bxa5 {[%emt 0:01:19]} 45. bxa5 {[%emt 0:00:07]} h5 {[%emt 0:00:12]} 46. c6 {[%emt 0:00:41]} Bf5 {[%emt 0:00:12]} 47. Kc5 {[%emt 0:03:37]} Rc2+ {[%emt 0:00:19]} 48. Kb5 {[%emt 0:00:05]} Kd6 {[%emt 0:00:43]} 0-1

[Event "VI Sunway Sitges Open 2019"]
[Site "Sitges"]
[Date "2019.12.18"]
[Round "6.40"]
[White "Saduakassova, Dinara"]
[Black "Pajeken, Jakob Leon"]
[Result "1-0"]
[ECO "D27"]
[WhiteElo "2505"]
[BlackElo "2350"]
[Annotator "ChessBase"]
[PlyCount "97"]
[EventDate "2019.12.13"]
[EventType "swiss"]
[EventCountry "ESP"]
[SourceTitle "playchess.com"]
[Source "ChessBase"]
[SourceQuality "1"]
[TimeControl "40/5400+30:1800+30"]

1. d4 {[%emt 0:00:00]} d5 {[%emt 0:00:00]} 2. c4 {[%emt 0:00:00]} dxc4 {[%emt 0:00:00]} 3. Nf3 {[%emt 0:00:00]} Nf6 {[%emt 0:00:00]} 4. e3 {[%emt 0:00:00]} e6 {[%emt 0:00:02]} 5. Bxc4 {[%emt 0:00:00]} c5 {[%emt 0:00:06]} 6. O-O {[%emt 0:00:56]} a6 {[%emt 0:00:29]} 7. Re1 {[%emt 0:00:15]} Nc6 {[%emt 0:04:42]} 8. Nc3 {[%emt 0:00:31]} Be7 {[%emt 0:03:29]} 9. dxc5 {[%emt 0:01:02]} Bxc5 {[%emt 0:06:42]} 10. Qxd8+ {[%emt 0:05:33]} Kxd8 {[%emt 0:00:39]} 11. Ng5 {[%emt 0:03:08]} Ke7 {[%emt 0:02:17]} 12. Nge4 {[%emt 0:00:29]} Nxe4 {[%emt 0:02:25]} 13. Nxe4 {[%emt 0:00:04]} Bb4 {[%emt 0:01:13]} 14. Rd1 {[%emt 0:00:51]} f5 {[%emt 0:08:10]} 15. a3 {[%emt 0:02:22]} Ba5 {[%emt 0:07:40]} 16. Nc5 {[%emt 0:03:43]} Rd8 {[%emt 0:10:05]} 17. Rxd8 {[%emt 0:01:31]} Bxd8 {[%emt 0:00:08]} 18. e4 {[%emt 0:01:47]} b6 {[%emt 0:01:13]} 19. Bg5+ {[%emt 0:07:08]} Kd6 {[%emt 0:06:50]} 20. Nxe6 {[%emt 0:02:45]} Bxe6 {[%emt 0:01:33]} 21. Rd1+ {[%emt 0:00:03]} Ke5 {[%emt 0:04:36]} 22. f4+ {[%emt 0:00:09]} Kxe4 {[%emt 0:00:09]} 23. Re1+ {[%emt 0:00:34]} Kd4 {[%emt 0:00:06]} 24. Bxe6 {[%emt 0:00:12]} Bxg5 {[%emt 0:00:59]} 25. fxg5 {[%emt 0:00:28]} f4 {[%emt 0:12:21]} 26. Bf5 {[%emt 0:02:32]} g6 {[%emt 0:04:19]} 27. Be4 {[%emt 0:01:28]} Rc8 {[%emt 0:02:08]} 28. Bf3 {[%emt 0:00:32]} Kd3 {[%emt 0:05:54]} 29. Kf2 {[%emt 0:16:18]} Kc2 {[%emt 0:00:47]} 30. b4 {[%emt 0:15:44]} Nd4 {[%emt 0:09:04]} 31. Bb7 {[%emt 0:10:58]} Rc3 {[%emt 0:00:00]} 32. a4 {[%emt 0:01:14]} Kb3 {[%emt 0:00:00]} 33. a5 {[%emt 0:00:20]} bxa5 {[%emt 0:00:00]} 34. bxa5 {[%emt 0:00:04]} Rc2+ {[%emt 0:00:00]} 35. Kg1 {[%emt 0:03:35]} Rc5 {[%emt 0:00:00]} 36. Rd1 {[%emt 0:01:43]} Nc2 {[%emt 0:00:00]} 37. Rd5 {[%emt 0:01:31]} Rc7 {[%emt 0:00:00]} 38. Bxa6 {[%emt 0:04:28]} Nb4 {[%emt 0:01:23]} 39. Rd6 {[%emt 0:00:07]} Ra7 {[%emt 0:02:12]} 40. Be2 {[%emt 0:00:00]} Rxa5 {[%emt 0:00:00]} 41. h4 {[%emt 0:04:06]} Rd5 {[%emt 0:08:18]} 42. Rf6 {[%emt 0:03:31]} Rd4 {[%emt 0:00:24]} 43. Bf3 {[%emt 0:06:08]} Nd3 {[%emt 0:02:14]} 44. Rf7 {[%emt 0:00:11]} Ne5 {[%emt 0:00:54]} 45. Rxh7 {[%emt 0:00:25]} Kc3 {[%emt 0:00:38]} 46. Re7 {[%emt 0:00:37]} Nxf3+ {[%emt 0:01:27]} 47. gxf3 {[%emt 0:00:05]} Kd2 {[%emt 0:01:48]} 48. Kg2 {[%emt 0:01:41]} Rd3 {[%emt 0:01:02]} 49. Re4 {[%emt 0:00:29]} 1-0

[Event "VI Sunway Sitges Open 2019"]
[Site "Sitges"]
[Date "2019.12.18"]
[Round "6.41"]
[White "Lobanov, Sergei"]
[Black "Borocz, Istvan"]
[Result "1-0"]
[ECO "B22"]
[WhiteElo "2504"]
[BlackElo "2346"]
[Annotator "ChessBase"]
[PlyCount "81"]
[EventDate "2019.12.13"]
[EventType "swiss"]
[EventCountry "ESP"]
[SourceTitle "playchess.com"]
[Source "ChessBase"]
[SourceQuality "1"]
[TimeControl "40/5400+30:1800+30"]

1. e4 {[%emt 0:02:44]} c5 {[%emt 0:00:08]} 2. Nf3 {[%emt 0:00:06]} Nc6 {[%emt 0:00:05]} 3. c3 {[%emt 0:01:01]} d5 {[%emt 0:07:19]} 4. exd5 {[%emt 0:00:04]} Qxd5 {[%emt 0:00:05]} 5. d4 {[%emt 0:00:03]} Bf5 {[%emt 0:00:07]} 6. dxc5 {[%emt 0:08:53]} Qxd1+ {[%emt 0:04:23]} 7. Kxd1 {[%emt 0:00:01]} O-O-O+ {[%emt 0:00:45]} 8. Nbd2 {[%emt 0:05:20]} e5 {[%emt 0:03:13]} 9. b4 {[%emt 0:00:33]} Nf6 {[%emt 0:08:12]} 10. Bb2 {[%emt 0:21:54]} Ne4 {[%emt 0:39:44]} 11. Ke1 {[%emt 0:01:21]} Be7 {[%emt 0:02:16]} 12. Nxe4 {[%emt 0:00:51]} Bxe4 {[%emt 0:00:19]} 13. Nd2 {[%emt 0:00:04]} Bg6 {[%emt 0:06:17]} 14. Nc4 {[%emt 0:00:54]} Rhe8 {[%emt 0:02:39]} 15. Be2 {[%emt 0:01:10]} e4 {[%emt 0:01:35]} 16. g4 {[%emt 0:07:16]} f6 {[%emt 0:08:21]} 17. Bc1 {[%emt 0:02:05]} Bf7 {[%emt 0:02:46]} 18. Bf4 {[%emt 0:00:59]} Bf8 {[%emt 0:01:33]} 19. Rd1 {[%emt 0:04:53]} Rxd1+ {[%emt 0:00:33]} 20. Kxd1 {[%emt 0:00:01]} Bxc4 {[%emt 0:02:22]} 21. Bxc4 {[%emt 0:00:05]} Ne5 {[%emt 0:00:05]} 22. Be2 {[%emt 0:00:19]} Be7 {[%emt 0:00:54]} 23. Kc2 {[%emt 0:01:14]} Bd8 {[%emt 0:00:06]} 24. h4 {[%emt 0:06:40]} Bc7 {[%emt 0:00:09]} 25. Be3 {[%emt 0:00:06]} Ng6 {[%emt 0:00:59]} 26. h5 {[%emt 0:01:22]} Nf4 {[%emt 0:00:09]} 27. Bb5 {[%emt 0:00:33]} Re7 {[%emt 0:01:09]} 28. c6 {[%emt 0:01:29]} Nd5 {[%emt 0:04:16]} 29. Bxa7 {[%emt 0:01:28]} Be5 {[%emt 0:02:33]} 30. Bc5 {[%emt 0:00:06]} Rc7 {[%emt 0:01:01]} 31. c4 {[%emt 0:01:03]} Nc3 {[%emt 0:00:51]} 32. Bb6 {[%emt 0:01:51]} Re7 {[%emt 0:00:28]} 33. Kb3 {[%emt 0:01:21]} Re6 {[%emt 0:00:29]} 34. cxb7+ {[%emt 0:00:05]} Kxb7 {[%emt 0:00:05]} 35. Bc5 {[%emt 0:00:02]} Ne2 {[%emt 0:00:46]} 36. Rd1 {[%emt 0:00:13]} f5 {[%emt 0:00:16]} 37. Rd7+ {[%emt 0:00:41]} Kb8 {[%emt 0:00:04]} 38. gxf5 {[%emt 0:01:50]} Rf6 {[%emt 0:00:03]} 39. Be3 {[%emt 0:00:53]} Rxf5 {[%emt 0:00:13]} 40. c5 {[%emt 0:00:00]} Bf4 {[%emt 0:00:00]} 41. Bxe2 {[%emt 0:00:26]} 1-0

[Event "VI Sunway Sitges Open 2019"]
[Site "Sitges"]
[Date "2019.12.18"]
[Round "6.42"]
[White "Sorensen, Hampus"]
[Black "Barseghyan, Harutyun"]
[Result "1-0"]
[ECO "D30"]
[WhiteElo "2364"]
[BlackElo "2498"]
[Annotator "ChessBase"]
[PlyCount "75"]
[EventDate "2019.12.13"]
[EventType "swiss"]
[EventCountry "ESP"]
[SourceTitle "playchess.com"]
[Source "ChessBase"]
[SourceQuality "1"]
[TimeControl "40/5400+30:1800+30"]

1. d4 {[%emt 0:00:00]} e6 {[%emt 0:01:35]} 2. c4 {[%emt 0:00:02]} Nf6 {[%emt 0:00:07]} 3. Nf3 {[%emt 0:00:07]} d5 {[%emt 0:00:05]} 4. Bg5 {[%emt 0:00:29]} Bb4+ {[%emt 0:07:46]} 5. Nbd2 {[%emt 0:00:50]} dxc4 {[%emt 0:00:54]} 6. e3 {[%emt 0:08:47]} b5 {[%emt 0:03:27]} 7. a3 {[%emt 0:01:43]} Ba5 {[%emt 0:06:15]} 8. a4 {[%emt 0:07:31]} c3 {[%emt 0:10:56]} 9. bxc3 {[%emt 0:01:53]} Bxc3 {[%emt 0:02:31]} 10. Bxf6 {[%emt 0:09:52]} gxf6 {[%emt 0:11:47]} 11. Bxb5+ {[%emt 0:01:22]} c6 {[%emt 0:02:47]} 12. Rc1 {[%emt 0:00:39]} cxb5 {[%emt 0:01:48]} 13. Rxc3 {[%emt 0:00:55]} b4 {[%emt 0:00:12]} 14. Rc1 {[%emt 0:10:12]} a5 {[%emt 0:03:57]} 15. e4 {[%emt 0:04:50]} Ba6 {[%emt 0:01:33]} 16. Nc4 {[%emt 0:03:34]} Bxc4 {[%emt 0:03:25]} 17. Rxc4 {[%emt 0:00:03]} Nd7 {[%emt 0:00:21]} 18. O-O {[%emt 0:02:16]} O-O {[%emt 0:09:13]} 19. d5 {[%emt 0:01:58]} exd5 {[%emt 0:11:12]} 20. Rd4 {[%emt 0:04:54]} Ne5 {[%emt 0:01:12]} 21. Rxd5 {[%emt 0:00:49]} Qe7 {[%emt 0:11:04]} 22. Nxe5 {[%emt 0:06:37]} fxe5 {[%emt 0:00:01]} 23. Qh5 {[%emt 0:07:14]} f6 {[%emt 0:00:51]} 24. Rfd1 {[%emt 0:00:35]} Qf7 {[%emt 0:01:19]} 25. Qh4 {[%emt 0:04:55]} Qg6 {[%emt 0:00:24]} 26. R1d3 {[%emt 0:00:21]} Kh8 {[%emt 0:00:18]} 27. h3 {[%emt 0:10:06]} Ra7 {[%emt 0:00:03]} 28. Rd8 {[%emt 0:01:43]} Rxd8 {[%emt 0:00:35]} 29. Rxd8+ {[%emt 0:00:01]} Kg7 {[%emt 0:00:00]} 30. Rd3 {[%emt 0:00:35]} Rb7 {[%emt 0:01:05]} 31. f4 {[%emt 0:02:59]} b3 {[%emt 0:02:58]} 32. f5 {[%emt 0:00:16]} b2 {[%emt 0:02:12]} 33. fxg6 {[%emt 0:00:07]} b1=Q+ {[%emt 0:00:03]} 34. Kh2 {[%emt 0:00:11]} hxg6 {[%emt 0:00:03]} 35. Rd8 {[%emt 0:00:15]} Kf7 {[%emt 0:01:05]} 36. Qh7+ {[%emt 0:00:48]} Ke6 {[%emt 0:00:02]} 37. Qg8+ {[%emt 0:00:29]} Ke7 {[%emt 0:00:07]} 38. Qe8# {[%emt 0:00:12]} 1-0

[Event "VI Sunway Sitges Open 2019"]
[Site "Sitges"]
[Date "2019.12.18"]
[Round "6.43"]
[White "Iniyan, P."]
[Black "Sidhant, Mohapatra"]
[Result "1/2-1/2"]
[ECO "D56"]
[WhiteElo "2497"]
[BlackElo "2338"]
[Annotator "ChessBase"]
[PlyCount "40"]
[EventDate "2019.12.13"]
[EventType "swiss"]
[EventCountry "ESP"]
[SourceTitle "playchess.com"]
[Source "ChessBase"]
[SourceQuality "1"]
[TimeControl "40/5400+30:1800+30"]

1. d4 {[%emt 0:00:52]} Nf6 {[%emt 0:00:23]} 2. c4 {[%emt 0:00:10]} e6 {[%emt 0:00:09]} 3. Nf3 {[%emt 0:00:07]} d5 {[%emt 0:00:08]} 4. Bg5 {[%emt 0:00:12]} Be7 {[%emt 0:00:20]} 5. e3 {[%emt 0:00:06]} h6 {[%emt 0:00:31]} 6. Bh4 {[%emt 0:00:05]} O-O {[%emt 0:00:07]} 7. Nc3 {[%emt 0:00:03]} Ne4 {[%emt 0:00:10]} 8. Bxe7 {[%emt 0:00:08]} Qxe7 {[%emt 0:00:08]} 9. Rc1 {[%emt 0:00:04]} c6 {[%emt 0:00:26]} 10. g4 {[%emt 0:00:06]} Nd7 {[%emt 0:01:34]} 11. h4 {[%emt 0:00:10]} Nxc3 {[%emt 0:00:47]} 12. Rxc3 {[%emt 0:00:06]} g6 {[%emt 0:00:10]} 13. g5 {[%emt 0:10:38]} h5 {[%emt 0:01:37]} 14. Qc2 {[%emt 0:00:08]} e5 {[%emt 0:01:31]} 15. cxd5 {[%emt 0:20:44]} cxd5 {[%emt 0:01:33]} 16. dxe5 {[%emt 0:12:09]} Nxe5 {[%emt 0:00:19]} 17. Nd4 {[%emt 0:00:04]} Nc6 {[%emt 0:10:37]} 18. Qd3 {[%emt 0:23:22]} Ne5 {[%emt 0:11:51]} 19. Qc2 {[%emt 0:00:09]} Nc6 {[%emt 0:00:05]} 20. Qd3 {[%emt 0:00:07]} Ne5 {[%emt 0:00:05]} 1/2-1/2